[Event "Titled Tuesday Blitz June 28 Late 2022"]
[White "Omariev, Maksim"]
[Black "Sibilio, Mario"]
[WhiteFideId "4193423"]
[BlackFideId "800422"]
[WhiteElo "2437"]
[BlackElo "2296"]
[Result "1-0"]
[Round "07"]
[TimeControl "180+1"]
[Date "2022.06.29"]
[WhiteClock "0:00:07"]
[BlackClock "0:00:19"]

1. g4 {[%clk 0:00:59]}  d5 {[%clk 0:02:52]} 2. Bg2 {[%clk 0:00:59]}  c6 {[%clk 0:02:52]} 3. h3 {[%clk 0:00:59]}  e5 {[%clk 0:02:46]} 4. d4 {[%clk 0:00:58]}  exd4 {[%clk 0:02:44]} 5. Qxd4 {[%clk 0:00:59]}  Nf6 {[%clk 0:02:37]} 6. c4 {[%clk 0:00:58]}  dxc4 {[%clk 0:02:33]} 7. Qxc4 {[%clk 0:00:58]}  Be6 {[%clk 0:02:32]} 8. Qa4 {[%clk 0:00:52]}  Nbd7 {[%clk 0:02:28]} 9. Nc3 {[%clk 0:00:52]}  Nc5 {[%clk 0:01:56]} 10. Qc2 {[%clk 0:00:52]}  Be7 {[%clk 0:01:50]} 11. Nf3 {[%clk 0:00:52]}  O-O {[%clk 0:01:45]} 12. O-O {[%clk 0:00:46]}  a5 {[%clk 0:01:44]} 13. Bf4 {[%clk 0:00:43]}  Nd5 {[%clk 0:01:43]} 14. Rad1 {[%clk 0:00:41]}  Nxf4 {[%clk 0:01:37]} 15. Rxd8 {[%clk 0:00:40]}  Rfxd8 {[%clk 0:01:37]} 16. e3 {[%clk 0:00:28]}  Nxg2 {[%clk 0:01:35]} 17. Kxg2 {[%clk 0:00:29]}  b5 {[%clk 0:01:33]} 18. Rd1 {[%clk 0:00:29]}  Rxd1 {[%clk 0:01:29]} 19. Qxd1 {[%clk 0:00:30]}  b4 {[%clk 0:01:28]} 20. Na4 {[%clk 0:00:28]}  Rd8 {[%clk 0:01:19]} 21. Qc2 {[%clk 0:00:25]}  b3 {[%clk 0:01:12]} 22. axb3 {[%clk 0:00:16]}  Bxb3 {[%clk 0:01:11]} 23. Qc3 {[%clk 0:00:16]}  Bxa4 {[%clk 0:01:10]} 24. Qxa5 {[%clk 0:00:16]}  Bc2 {[%clk 0:01:02]} 25. Qc7 {[%clk 0:00:14]}  Bf8 {[%clk 0:00:59]} 26. Qxd8 {[%clk 0:00:10]}  Be4 {[%clk 0:00:58]} 27. Kg3 {[%clk 0:00:09]}  Bd5 {[%clk 0:00:54]} 28. Nd4 {[%clk 0:00:05]}  Ne4+ {[%clk 0:00:51]} 29. Kg2 {[%clk 0:00:02]}  Nd6+ {[%clk 0:00:39]} 30. f3 {[%clk 0:00:02]}  c5 {[%clk 0:00:39]} 31. Nf5 {[%clk 0:00:02]}  Nxf5 {[%clk 0:00:38]} 32. gxf5 {[%clk 0:00:03]}  Bb3 {[%clk 0:00:35]} 33. e4 {[%clk 0:00:03]}  f6 {[%clk 0:00:34]} 34. f4 {[%clk 0:00:04]}  g6 {[%clk 0:00:30]} 35. fxg6 {[%clk 0:00:04]}  hxg6 {[%clk 0:00:29]} 36. Qxf6 {[%clk 0:00:04]}  Bf7 {[%clk 0:00:28]} 37. e5 {[%clk 0:00:04]}  Bg7 {[%clk 0:00:28]} 38. Qd8+ {[%clk 0:00:04]}  Bf8 {[%clk 0:00:27]} 39. Qd7 {[%clk 0:00:04]}  Bb3 {[%clk 0:00:24]} 40. e6 {[%clk 0:00:05]}  Bxe6 {[%clk 0:00:22]} 41. Qxe6+ {[%clk 0:00:05]}  Kg7 {[%clk 0:00:23]} 42. Kg3 {[%clk 0:00:05]}  Kh7 {[%clk 0:00:21]} 43. Kg4 {[%clk 0:00:06]}  Bg7 {[%clk 0:00:21]} 44. Kg5 {[%clk 0:00:06]}  Bh6+ {[%clk 0:00:21]} 45. Kg4 {[%clk 0:00:07]}  Bg7 {[%clk 0:00:21]} 46. Qf7 {[%clk 0:00:07]}  Kh6 {[%clk 0:00:20]} 47. b3 {[%clk 0:00:08]}  Bd4 {[%clk 0:00:19]} 48. h4 {[%clk 0:00:07]} 1-0


[Site "https://www.chess.com"]

[Event "Titled Tuesday Blitz June 28 Late 2022"]
[White "Pakleza, Zbigniew"]
[Black "Yoo, Christopher Woojin"]
[WhiteFideId "1119290"]
[BlackFideId "30909694"]
[WhiteElo "2467"]
[BlackElo "2105"]
[Result "1-0"]
[Round "07"]
[TimeControl "180+1"]
[Date "2022.06.28"]
[WhiteClock "0:00:07"]
[BlackClock "0:00:01"]

1. d4 {[%clk 0:03:00]}  Nf6 {[%clk 0:02:59]} 2. Nf3 {[%clk 0:03:00]}  g6 {[%clk 0:02:58]} 3. Bf4 {[%clk 0:03:00]}  Bg7 {[%clk 0:02:57]} 4. e3 {[%clk 0:03:01]}  O-O {[%clk 0:02:57]} 5. Be2 {[%clk 0:03:01]}  b6 {[%clk 0:02:57]} 6. O-O {[%clk 0:03:01]}  Bb7 {[%clk 0:02:58]} 7. h3 {[%clk 0:03:00]}  d6 {[%clk 0:02:59]} 8. a4 {[%clk 0:02:58]}  a5 {[%clk 0:02:53]} 9. Nbd2 {[%clk 0:02:55]}  Nbd7 {[%clk 0:02:52]} 10. c3 {[%clk 0:02:51]}  Ne4 {[%clk 0:02:51]} 11. Nxe4 {[%clk 0:02:51]}  Bxe4 {[%clk 0:02:52]} 12. Bg3 {[%clk 0:02:51]}  Bb7 {[%clk 0:02:23]} 13. Nd2 {[%clk 0:02:48]}  e5 {[%clk 0:02:19]} 14. Bf3 {[%clk 0:02:47]}  Qc8 {[%clk 0:02:18]} 15. Bxb7 {[%clk 0:02:46]}  Qxb7 {[%clk 0:02:19]} 16. Qf3 {[%clk 0:02:46]}  Rfb8 {[%clk 0:02:17]} 17. Qxb7 {[%clk 0:02:39]}  Rxb7 {[%clk 0:02:16]} 18. Rfb1 {[%clk 0:02:33]}  exd4 {[%clk 0:02:02]} 19. exd4 {[%clk 0:02:22]}  d5 {[%clk 0:01:57]} 20. Rd1 {[%clk 0:02:07]}  Nf8 {[%clk 0:01:45]} 21. Kf1 {[%clk 0:02:01]}  Ne6 {[%clk 0:01:45]} 22. Nf3 {[%clk 0:01:59]}  c5 {[%clk 0:01:20]} 23. Be5 {[%clk 0:01:08]}  Rc8 {[%clk 0:01:10]} 24. dxc5 {[%clk 0:00:53]}  bxc5 {[%clk 0:01:10]} 25. Bxg7 {[%clk 0:00:53]}  Kxg7 {[%clk 0:01:10]} 26. Rxd5 {[%clk 0:00:54]}  Rxb2 {[%clk 0:01:10]} 27. Ne5 {[%clk 0:00:50]}  Rc2 {[%clk 0:01:04]} 28. Rd7 {[%clk 0:00:44]}  Rc7 {[%clk 0:01:04]} 29. Rxc7 {[%clk 0:00:42]}  Nxc7 {[%clk 0:01:05]} 30. Nc4 {[%clk 0:00:42]}  Rxc3 {[%clk 0:01:05]} 31. Nxa5 {[%clk 0:00:43]}  c4 {[%clk 0:00:48]} 32. Ke2 {[%clk 0:00:42]}  Rc2+ {[%clk 0:00:22]} 33. Ke3 {[%clk 0:00:41]}  c3 {[%clk 0:00:15]} 34. Nc4 {[%clk 0:00:32]}  Nd5+ {[%clk 0:00:15]} 35. Kd4 {[%clk 0:00:25]}  Nb4 {[%clk 0:00:15]} 36. Kc5 {[%clk 0:00:13]}  Na6+ {[%clk 0:00:04]} 37. Kb6 {[%clk 0:00:10]}  Nb8 {[%clk 0:00:02]} 38. Kc7 {[%clk 0:00:11]}  Na6+ {[%clk 0:00:02]} 39. Kb6 {[%clk 0:00:10]}  Nb4 {[%clk 0:00:02]} 40. a5 {[%clk 0:00:08]}  Rxf2 {[%clk 0:00:02]} 41. Kb5 {[%clk 0:00:09]}  Nd5 {[%clk 0:00:02]} 42. Kc5 {[%clk 0:00:08]}  Nc7 {[%clk 0:00:03]} 43. Kb6 {[%clk 0:00:08]}  Nd5+ {[%clk 0:00:02]} 44. Kc5 {[%clk 0:00:08]}  Rf5 {[%clk 0:00:02]} 45. Nd6 {[%clk 0:00:06]}  Rg5 {[%clk 0:00:02]} 46. h4 {[%clk 0:00:06]}  Re5 {[%clk 0:00:02]} 47. Nc4 {[%clk 0:00:05]}  Rf5 {[%clk 0:00:02]} 48. g4 {[%clk 0:00:06]}  Rf4 {[%clk 0:00:01]} 49. Kxd5 {[%clk 0:00:06]}  c2 {[%clk 0:00:02]} 50. a6 {[%clk 0:00:05]}  Rf6 {[%clk 0:00:02]} 51. Rc1 {[%clk 0:00:03]}  Rxa6 {[%clk 0:00:03]} 52. Rxc2 {[%clk 0:00:04]}  Ra4 {[%clk 0:00:02]} 53. Rg2 {[%clk 0:00:03]}  Ra1 {[%clk 0:00:02]} 54. Ne5 {[%clk 0:00:04]}  Rd1+ {[%clk 0:00:01]} 55. Ke4 {[%clk 0:00:05]}  Re1+ {[%clk 0:00:01]} 56. Kf4 {[%clk 0:00:06]}  Ra1 {[%clk 0:00:02]} 57. Nf3 {[%clk 0:00:06]}  Ra4+ {[%clk 0:00:03]} 58. Kg3 {[%clk 0:00:07]}  Kf6 {[%clk 0:00:03]} 59. Rf2 {[%clk 0:00:07]}  Kg7 {[%clk 0:00:03]} 60. Ng5 {[%clk 0:00:07]}  f6 {[%clk 0:00:03]} 61. Ne6+ {[%clk 0:00:07]}  Kf7 {[%clk 0:00:04]} 62. Nf4 {[%clk 0:00:08]}  Ra3+ {[%clk 0:00:03]} 63. Rf3 {[%clk 0:00:09]}  Ra1 {[%clk 0:00:04]} 64. Nd5 {[%clk 0:00:08]}  Ra6 {[%clk 0:00:04]} 65. g5 {[%clk 0:00:08]}  f5 {[%clk 0:00:04]} 66. Rb3 {[%clk 0:00:08]}  Ra7 {[%clk 0:00:04]} 67. Rc3 {[%clk 0:00:08]}  Ke6 {[%clk 0:00:04]} 68. Nf4+ {[%clk 0:00:08]}  Ke5 {[%clk 0:00:04]} 69. Re3+ {[%clk 0:00:09]}  Kd4 {[%clk 0:00:04]} 70. Re8 {[%clk 0:00:08]}  Ra3+ {[%clk 0:00:04]} 71. Kf2 {[%clk 0:00:08]}  Ra2+ {[%clk 0:00:03]} 72. Ne2+ {[%clk 0:00:08]}  Kd5 {[%clk 0:00:04]} 73. Re7 {[%clk 0:00:08]}  Ra4 {[%clk 0:00:01]} 74. Rxh7 {[%clk 0:00:08]}  f4 {[%clk 0:00:01]} 75. h5 {[%clk 0:00:07]}  gxh5 {[%clk 0:00:01]} 76. g6 {[%clk 0:00:08]}  Ra6 {[%clk 0:00:01]} 77. g7 {[%clk 0:00:07]}  Ra8 {[%clk 0:00:01]} 78. Rh8 {[%clk 0:00:07]} 1-0


[Site "https://www.chess.com"]

[Event "Titled Tuesday Blitz June 28 Late 2022"]
[White "Papp, Levente"]
[Black "Lopez Gracia, Fernando"]
[WhiteFideId "751243"]
[BlackFideId "2207184"]
[WhiteElo "2308"]
[BlackElo "2473"]
[Result "1-0"]
[Round "07"]
[TimeControl "180+1"]
[Date "2022.06.28"]
[WhiteClock "0:00:30"]
[BlackClock "0:01:08"]

1. c4 {[%clk 0:03:00]}  e6 {[%clk 0:02:58]} 2. Nf3 {[%clk 0:02:59]}  Nf6 {[%clk 0:02:57]} 3. g3 {[%clk 0:02:59]}  d5 {[%clk 0:02:57]} 4. Bg2 {[%clk 0:02:59]}  dxc4 {[%clk 0:02:57]} 5. O-O {[%clk 0:02:59]}  Be7 {[%clk 0:02:54]} 6. Na3 {[%clk 0:02:58]}  a6 {[%clk 0:02:50]} 7. Nxc4 {[%clk 0:02:54]}  b5 {[%clk 0:02:50]} 8. Nfe5 {[%clk 0:02:42]}  Nd5 {[%clk 0:02:50]} 9. Na5 {[%clk 0:02:35]}  Qd6 {[%clk 0:02:38]} 10. d4 {[%clk 0:02:28]}  f6 {[%clk 0:02:35]} 11. e4 {[%clk 0:02:22]}  fxe5 {[%clk 0:02:26]} 12. exd5 {[%clk 0:02:12]}  Qb6 {[%clk 0:02:05]} 13. Nb3 {[%clk 0:01:54]}  Bb7 {[%clk 0:01:59]} 14. Qh5+ {[%clk 0:01:33]}  g6 {[%clk 0:01:47]} 15. Qxe5 {[%clk 0:01:33]}  O-O {[%clk 0:01:48]} 16. Qxe6+ {[%clk 0:01:34]}  Qxe6 {[%clk 0:01:44]} 17. dxe6 {[%clk 0:01:34]}  Bxg2 {[%clk 0:01:44]} 18. Kxg2 {[%clk 0:01:35]}  Nc6 {[%clk 0:01:44]} 19. Bf4 {[%clk 0:01:06]}  Bd6 {[%clk 0:01:32]} 20. Rac1 {[%clk 0:00:50]}  Bxf4 {[%clk 0:01:28]} 21. Rxc6 {[%clk 0:00:50]}  Bd6 {[%clk 0:01:27]} 22. Re1 {[%clk 0:00:43]}  Rfe8 {[%clk 0:01:26]} 23. Rc2 {[%clk 0:00:35]}  a5 {[%clk 0:01:23]} 24. Nc5 {[%clk 0:00:33]}  Re7 {[%clk 0:01:18]} 25. d5 {[%clk 0:00:30]}  Rd8 {[%clk 0:01:09]} 26. Nb7 {[%clk 0:00:30]}  Ra8 {[%clk 0:01:07]} 27. Nxd6 {[%clk 0:00:30]}  cxd6 {[%clk 0:01:08]} 28. Rc6 {[%clk 0:00:30]} 1-0


[Site "https://www.chess.com"]

[Event "Titled Tuesday Blitz June 28 Late 2022"]
[White "Pershin, Denis"]
[Black "Jessel, Stephen"]
[WhiteFideId "24165506"]
[BlackFideId "628859"]
[WhiteElo "2275"]
[BlackElo "2268"]
[Result "1-0"]
[Round "07"]
[TimeControl "180+1"]
[Date "2022.06.28"]
[WhiteClock "0:00:07"]
[BlackClock "0:00:03"]

1. e4 {[%clk 0:02:09]}  e6 {[%clk 0:02:59]} 2. d4 {[%clk 0:02:08]}  d5 {[%clk 0:02:59]} 3. Nc3 {[%clk 0:02:09]}  Nf6 {[%clk 0:03:00]} 4. e5 {[%clk 0:02:09]}  Nfd7 {[%clk 0:03:00]} 5. f4 {[%clk 0:02:10]}  c5 {[%clk 0:03:00]} 6. Nf3 {[%clk 0:02:11]}  Nc6 {[%clk 0:03:01]} 7. Be3 {[%clk 0:02:11]}  cxd4 {[%clk 0:03:02]} 8. Nxd4 {[%clk 0:02:12]}  Bc5 {[%clk 0:03:03]} 9. Qd2 {[%clk 0:02:12]}  O-O {[%clk 0:03:03]} 10. O-O-O {[%clk 0:02:12]}  a6 {[%clk 0:03:04]} 11. Kb1 {[%clk 0:02:11]}  Nxd4 {[%clk 0:03:04]} 12. Bxd4 {[%clk 0:02:12]}  b5 {[%clk 0:03:04]} 13. h4 {[%clk 0:02:09]}  b4 {[%clk 0:03:04]} 14. Ne2 {[%clk 0:02:08]}  a5 {[%clk 0:03:05]} 15. h5 {[%clk 0:02:07]}  Qb6 {[%clk 0:03:04]} 16. Qe3 {[%clk 0:01:34]}  Ba6 {[%clk 0:02:56]} 17. Ng3 {[%clk 0:01:35]}  Rfc8 {[%clk 0:02:42]} 18. f5 {[%clk 0:01:35]}  Bxd4 {[%clk 0:02:28]} 19. Rxd4 {[%clk 0:01:32]}  Qc7 {[%clk 0:01:43]} 20. Rd2 {[%clk 0:01:18]}  Qxe5 {[%clk 0:01:32]} 21. Qf3 {[%clk 0:01:14]}  a4 {[%clk 0:01:05]} 22. Bd3 {[%clk 0:01:06]}  a3 {[%clk 0:01:03]} 23. c3 {[%clk 0:00:59]}  bxc3 {[%clk 0:00:48]} 24. Rc2 {[%clk 0:00:59]}  cxb2 {[%clk 0:00:34]} 25. fxe6 {[%clk 0:00:57]}  Bxd3 {[%clk 0:00:15]} 26. exf7+ {[%clk 0:00:46]}  Kf8 {[%clk 0:00:15]} 27. Qxd3 {[%clk 0:00:44]}  Rxc2 {[%clk 0:00:08]} 28. Kxc2 {[%clk 0:00:14]}  Rc8+ {[%clk 0:00:06]} 29. Kb1 {[%clk 0:00:15]}  Nf6 {[%clk 0:00:05]} 30. Qxa3+ {[%clk 0:00:09]}  Kxf7 {[%clk 0:00:05]} 31. h6 {[%clk 0:00:10]}  Ne4 {[%clk 0:00:03]} 32. Rf1+ {[%clk 0:00:10]}  Kg6 {[%clk 0:00:03]} 33. Qd3 {[%clk 0:00:09]}  Rc1+ {[%clk 0:00:02]} 34. Rxc1 {[%clk 0:00:08]}  bxc1=Q+ {[%clk 0:00:03]} 35. Kxc1 {[%clk 0:00:09]}  Qxg3 {[%clk 0:00:03]} 36. Qxd5 {[%clk 0:00:08]}  Qe1+ {[%clk 0:00:03]} 37. Kc2 {[%clk 0:00:08]}  Qc3+ {[%clk 0:00:03]} 38. Kd1 {[%clk 0:00:07]}  Qa1+ {[%clk 0:00:01]} 39. Kc2 {[%clk 0:00:07]}  Qb2+ {[%clk 0:00:02]} 40. Kxb2 {[%clk 0:00:07]}  Nf6 {[%clk 0:00:02]} 41. Qd3+ {[%clk 0:00:07]}  Kxh6 {[%clk 0:00:03]} 42. a4 {[%clk 0:00:07]} 1-0


[Site "https://www.chess.com"]

[Event "Titled Tuesday Blitz June 28 Late 2022"]
[White "Petrovic, Aleksa"]
[Black "Ricaurte Lopez, Juan Carlos"]
[WhiteFideId "967629"]
[BlackFideId "3600327"]
[WhiteElo "2117"]
[BlackElo "2209"]
[Result "1-0"]
[Round "07"]
[TimeControl "180+1"]
[Date "2022.06.29"]
[WhiteClock "0:01:28"]
[BlackClock "0:01:23"]

1. e4 {[%clk 0:03:00]}  e5 {[%clk 0:02:58]} 2. Nf3 {[%clk 0:03:00]}  Nc6 {[%clk 0:02:57]} 3. Bb5 {[%clk 0:02:59]}  a6 {[%clk 0:02:56]} 4. Ba4 {[%clk 0:02:59]}  Nf6 {[%clk 0:02:55]} 5. O-O {[%clk 0:02:59]}  Be7 {[%clk 0:02:55]} 6. Re1 {[%clk 0:02:59]}  b5 {[%clk 0:02:53]} 7. Bb3 {[%clk 0:03:00]}  O-O {[%clk 0:02:53]} 8. d4 {[%clk 0:02:58]}  Nxd4 {[%clk 0:02:40]} 9. Nxd4 {[%clk 0:02:56]}  exd4 {[%clk 0:02:40]} 10. e5 {[%clk 0:02:55]}  Ne8 {[%clk 0:02:35]} 11. c3 {[%clk 0:02:54]}  d3 {[%clk 0:02:16]} 12. Qxd3 {[%clk 0:02:52]}  d6 {[%clk 0:02:16]} 13. Bc2 {[%clk 0:02:44]}  g6 {[%clk 0:02:15]} 14. Bh6 {[%clk 0:02:40]}  Bf5 {[%clk 0:02:10]} 15. exd6 {[%clk 0:02:18]}  Nxd6 {[%clk 0:01:56]} 16. Qd1 {[%clk 0:01:48]}  Re8 {[%clk 0:01:45]} 17. Nd2 {[%clk 0:01:44]}  Bxc2 {[%clk 0:01:42]} 18. Qxc2 {[%clk 0:01:43]}  Nf5 {[%clk 0:01:41]} 19. Bf4 {[%clk 0:01:39]}  Bg5 {[%clk 0:01:40]} 20. Rxe8+ {[%clk 0:01:38]}  Qxe8 {[%clk 0:01:39]} 21. Bxg5 {[%clk 0:01:38]}  Qe2 {[%clk 0:01:37]} 22. Qe4 {[%clk 0:01:34]}  Re8 {[%clk 0:01:32]} 23. Qxe2 {[%clk 0:01:29]}  Rxe2 {[%clk 0:01:31]} 24. Kf1 {[%clk 0:01:28]}  Re6 {[%clk 0:01:23]} 25. Re1 {[%clk 0:01:28]} 1-0


[Site "https://www.chess.com"]

[Event "Titled Tuesday Blitz June 28 Late 2022"]
[White "Premnath, R."]
[Black "Capp, Stephen"]
[WhiteFideId "5021928"]
[BlackFideId "2027089"]
[WhiteElo "2610"]
[BlackElo "2153"]
[Result "1-0"]
[Round "07"]
[TimeControl "180+1"]
[Date "2022.06.29"]
[WhiteClock "0:00:08"]
[BlackClock "0:00:02"]

1. d4 {[%clk 0:02:27]}  Nf6 {[%clk 0:02:58]} 2. c4 {[%clk 0:02:26]}  e6 {[%clk 0:02:58]} 3. Nf3 {[%clk 0:02:25]}  d5 {[%clk 0:02:56]} 4. Nc3 {[%clk 0:02:25]}  Be7 {[%clk 0:02:56]} 5. Bg5 {[%clk 0:02:25]}  O-O {[%clk 0:02:55]} 6. e3 {[%clk 0:02:25]}  h6 {[%clk 0:02:55]} 7. Bxf6 {[%clk 0:02:25]}  Bxf6 {[%clk 0:02:55]} 8. Qc2 {[%clk 0:02:25]}  c6 {[%clk 0:02:54]} 9. Rd1 {[%clk 0:02:26]}  Nd7 {[%clk 0:02:53]} 10. Bd3 {[%clk 0:02:25]}  Qe7 {[%clk 0:02:47]} 11. O-O {[%clk 0:02:23]}  dxc4 {[%clk 0:02:47]} 12. Bxc4 {[%clk 0:02:23]}  e5 {[%clk 0:02:47]} 13. d5 {[%clk 0:02:17]}  cxd5 {[%clk 0:02:42]} 14. Nxd5 {[%clk 0:02:17]}  Qd6 {[%clk 0:02:01]} 15. e4 {[%clk 0:02:04]}  Nb6 {[%clk 0:01:55]} 16. Bb3 {[%clk 0:01:53]}  Nxd5 {[%clk 0:01:35]} 17. Rxd5 {[%clk 0:01:53]}  Qe7 {[%clk 0:01:29]} 18. Qc5 {[%clk 0:01:42]}  Qe8 {[%clk 0:01:25]} 19. Rd3 {[%clk 0:01:29]}  Bg4 {[%clk 0:01:18]} 20. h3 {[%clk 0:01:07]}  b6 {[%clk 0:01:12]} 21. Qe3 {[%clk 0:00:57]}  Be6 {[%clk 0:01:08]} 22. Bd5 {[%clk 0:00:55]}  Rc8 {[%clk 0:01:01]} 23. Rfd1 {[%clk 0:00:53]}  Rc5 {[%clk 0:00:48]} 24. b4 {[%clk 0:00:51]}  Rc2 {[%clk 0:00:46]} 25. a3 {[%clk 0:00:50]}  Bxd5 {[%clk 0:00:44]} 26. Rxd5 {[%clk 0:00:49]}  Qa4 {[%clk 0:00:38]} 27. R1d2 {[%clk 0:00:34]}  Rc1+ {[%clk 0:00:31]} 28. Kh2 {[%clk 0:00:35]}  Ra1 {[%clk 0:00:30]} 29. R5d3 {[%clk 0:00:35]}  Qe8 {[%clk 0:00:19]} 30. Rc3 {[%clk 0:00:34]}  Qe6 {[%clk 0:00:18]} 31. Rd5 {[%clk 0:00:33]}  Bg5 {[%clk 0:00:18]} 32. Qd3 {[%clk 0:00:30]}  f6 {[%clk 0:00:13]} 33. g3 {[%clk 0:00:26]}  h5 {[%clk 0:00:13]} 34. h4 {[%clk 0:00:20]}  Bh6 {[%clk 0:00:12]} 35. Kg2 {[%clk 0:00:20]}  Ra2 {[%clk 0:00:12]} 36. Rd6 {[%clk 0:00:19]}  Qg4 {[%clk 0:00:11]} 37. Rc7 {[%clk 0:00:17]}  Bf4 {[%clk 0:00:10]} 38. Qd5+ {[%clk 0:00:17]}  Kh8 {[%clk 0:00:09]} 39. Qxa2 {[%clk 0:00:18]}  f5 {[%clk 0:00:07]} 40. Rf7 {[%clk 0:00:14]}  Rxf7 {[%clk 0:00:03]} 41. Qxf7 {[%clk 0:00:13]}  fxe4 {[%clk 0:00:03]} 42. Rd8+ {[%clk 0:00:11]}  Kh7 {[%clk 0:00:03]} 43. Qg8+ {[%clk 0:00:11]}  Kh6 {[%clk 0:00:03]} 44. Qh8+ {[%clk 0:00:12]}  Kg6 {[%clk 0:00:04]} 45. Rd6+ {[%clk 0:00:12]}  Kf7 {[%clk 0:00:02]} 46. Nh2 {[%clk 0:00:08]} 1-0


[Site "https://www.chess.com"]

[Event "Titled Tuesday Blitz June 28 Late 2022"]
[White "Romanchuk, Viktor"]
[Black "Maksimovic, Bojan"]
[WhiteFideId "14109271"]
[BlackFideId "14408120"]
[WhiteElo "2242"]
[BlackElo "2453"]
[Result "0-1"]
[Round "07"]
[TimeControl "180+1"]
[Date "2022.06.28"]
[WhiteClock "0:00:01"]
[BlackClock "0:00:02"]

1. d4 {[%clk 0:03:00]}  Nf6 {[%clk 0:02:46]} 2. c4 {[%clk 0:02:59]}  g5 {[%clk 0:02:46]} 3. Bxg5 {[%clk 0:02:54]}  Rg8 {[%clk 0:02:39]} 4. Nf3 {[%clk 0:02:50]}  Ne4 {[%clk 0:02:34]} 5. Bc1 {[%clk 0:02:44]}  c5 {[%clk 0:02:32]} 6. dxc5 {[%clk 0:02:37]}  Qa5+ {[%clk 0:02:28]} 7. Nbd2 {[%clk 0:02:37]}  Nc6 {[%clk 0:02:24]} 8. g3 {[%clk 0:02:31]}  Nxc5 {[%clk 0:01:33]} 9. Bg2 {[%clk 0:02:27]}  d6 {[%clk 0:01:34]} 10. O-O {[%clk 0:02:27]}  Bg7 {[%clk 0:01:32]} 11. Nb3 {[%clk 0:02:23]}  Nxb3 {[%clk 0:01:24]} 12. Qxb3 {[%clk 0:02:22]}  Bd7 {[%clk 0:01:22]} 13. Bd2 {[%clk 0:02:21]}  Qc7 {[%clk 0:01:20]} 14. Rac1 {[%clk 0:02:12]}  b6 {[%clk 0:01:18]} 15. Bc3 {[%clk 0:02:09]}  Na5 {[%clk 0:01:13]} 16. Qc2 {[%clk 0:02:02]}  Bxc3 {[%clk 0:01:06]} 17. Qxc3 {[%clk 0:01:58]}  Rc8 {[%clk 0:01:06]} 18. Qd3 {[%clk 0:01:23]}  Rg7 {[%clk 0:00:57]} 19. b3 {[%clk 0:01:18]}  Nb7 {[%clk 0:00:55]} 20. Qe3 {[%clk 0:01:11]}  Kf8 {[%clk 0:00:50]} 21. Rcd1 {[%clk 0:01:06]}  Nc5 {[%clk 0:00:50]} 22. Rd4 {[%clk 0:01:05]}  Bc6 {[%clk 0:00:36]} 23. Rfd1 {[%clk 0:01:01]}  Kg8 {[%clk 0:00:36]} 24. Nh4 {[%clk 0:00:58]}  Bxg2 {[%clk 0:00:36]} 25. Kxg2 {[%clk 0:00:59]}  Qb7+ {[%clk 0:00:36]} 26. Qf3 {[%clk 0:00:59]}  Qc7 {[%clk 0:00:37]} 27. Nf5 {[%clk 0:00:58]}  Rg6 {[%clk 0:00:37]} 28. h4 {[%clk 0:00:51]}  Kh8 {[%clk 0:00:35]} 29. Rg4 {[%clk 0:00:46]}  Rcg8 {[%clk 0:00:31]} 30. Rxg6 {[%clk 0:00:44]}  hxg6 {[%clk 0:00:32]} 31. Ne3 {[%clk 0:00:42]}  Qd7 {[%clk 0:00:20]} 32. h5 {[%clk 0:00:38]}  g5 {[%clk 0:00:17]} 33. g4 {[%clk 0:00:37]}  Qe6 {[%clk 0:00:17]} 34. Qf5 {[%clk 0:00:33]}  Ne4 {[%clk 0:00:08]} 35. Qxe6 {[%clk 0:00:30]}  fxe6 {[%clk 0:00:09]} 36. f3 {[%clk 0:00:29]}  Nc5 {[%clk 0:00:10]} 37. Nc2 {[%clk 0:00:22]}  Kg7 {[%clk 0:00:09]} 38. Nd4 {[%clk 0:00:23]}  Kf6 {[%clk 0:00:10]} 39. Nc6 {[%clk 0:00:22]}  a5 {[%clk 0:00:10]} 40. Nd4 {[%clk 0:00:22]}  Na6 {[%clk 0:00:08]} 41. Kg3 {[%clk 0:00:21]}  a4 {[%clk 0:00:09]} 42. Rb1 {[%clk 0:00:18]}  axb3 {[%clk 0:00:06]} 43. axb3 {[%clk 0:00:19]}  Nc5 {[%clk 0:00:05]} 44. b4 {[%clk 0:00:15]}  Na6 {[%clk 0:00:05]} 45. Nc2 {[%clk 0:00:14]}  Rc8 {[%clk 0:00:05]} 46. Ne3 {[%clk 0:00:15]}  Rc7 {[%clk 0:00:03]} 47. Rb2 {[%clk 0:00:13]}  Rc8 {[%clk 0:00:03]} 48. Rb3 {[%clk 0:00:13]}  Rc7 {[%clk 0:00:04]} 49. Rb1 {[%clk 0:00:12]}  Rc8 {[%clk 0:00:04]} 50. Kf2 {[%clk 0:00:12]}  Ke5 {[%clk 0:00:03]} 51. b5 {[%clk 0:00:11]}  Nc5 {[%clk 0:00:03]} 52. Ra1 {[%clk 0:00:12]}  Kf6 {[%clk 0:00:02]} 53. Ra7 {[%clk 0:00:11]}  Rh8 {[%clk 0:00:02]} 54. Ra3 {[%clk 0:00:10]}  Rc8 {[%clk 0:00:02]} 55. Ra7 {[%clk 0:00:10]}  Rb8 {[%clk 0:00:02]} 56. Ra3 {[%clk 0:00:08]}  Nd7 {[%clk 0:00:02]} 57. Ra6 {[%clk 0:00:08]}  Ne5 {[%clk 0:00:03]} 58. Ke1 {[%clk 0:00:07]}  Rc8 {[%clk 0:00:02]} 59. Rxb6 {[%clk 0:00:06]}  Nxc4 {[%clk 0:00:03]} 60. Nxc4 {[%clk 0:00:06]}  Rxc4 {[%clk 0:00:03]} 61. Rb8 {[%clk 0:00:06]}  Rb4 {[%clk 0:00:03]} 62. b6 {[%clk 0:00:06]}  Rb1+ {[%clk 0:00:03]} 63. Kd2 {[%clk 0:00:07]}  Rb2+ {[%clk 0:00:04]} 64. Ke3 {[%clk 0:00:07]}  Kg7 {[%clk 0:00:04]} 65. Kd3 {[%clk 0:00:06]}  Rb3+ {[%clk 0:00:04]} 66. Kc2 {[%clk 0:00:06]}  Rb5 {[%clk 0:00:04]} 67. Rb7 {[%clk 0:00:05]}  Kf7 {[%clk 0:00:04]} 68. h6 {[%clk 0:00:05]}  Rc5+ {[%clk 0:00:04]} 69. Kd3 {[%clk 0:00:05]}  Rd5+ {[%clk 0:00:04]} 70. Ke3 {[%clk 0:00:05]}  Rd1 {[%clk 0:00:05]} 71. Rc7 {[%clk 0:00:01]}  Rb1 {[%clk 0:00:03]} 72. b7 {[%clk 0:00:02]}  e5 {[%clk 0:00:01]} 73. h7 {[%clk 0:00:01]}  Kg7 {[%clk 0:00:01]} 74. Rxe7+ {[%clk 0:00:01]}  Kh8 {[%clk 0:00:02]} 75. Rd7 {[%clk 0:00:01]}  Rxb7 {[%clk 0:00:02]} 0-1


[Site "https://www.chess.com"]